{"text_format":"3","workbook":"xlsx","n_sheets":2,"sheets":["list","data"],"read":"whole","date_system":"1900"}

{"sheet":"list","index":0,"n_rows":57,"n_cols":17,"rows_kept":57}
["№","СНИЛС","Фамлия","Имя","Отчество","Пол","Дата рождения","Участник с ОВЗ","Класс","Класс участия","Балл","Макс. Балл","Статус","Призер МЭ прошлого года","Учитель","Место работы учителя","Направление, вид практики  по технологии"]
[1,2,3,4,5,6,7,8,9,10,11,12,13,14,15,16,17]
[1,"16653988220","Мавлютова","Маргарита","Алексеевна","ж","2011-05-31",null,6,6,71,100,"призер",null,"Беззубова Марина Александровна","Муниципальное бюджетное общеобразовательное учреждение \"Средняя общеобразовательная школа №12\" города Набережные Челны Республики Татарстан"]
[2,"16829050899","Хайруллина","София","Руслановна","ж","2011-11-10",null,6,6,63,{"$f":"$L$3","v":100},"призер",null,"Беззубова Марина Александровна",{"$f":"$P$3","v":"Муниципальное бюджетное общеобразовательное учреждение \"Средняя общеобразовательная школа №12\" города Набережные Челны Республики Татарстан"}]
[3,"17194774001","Галиева","Адиля","Руслановна","ж","2011-01-06",null,6,6,59,100,{"$f":"$M$4","v":"призер"},null,"Беззубова Марина Александровна","Муниципальное бюджетное общеобразовательное учреждение \"Средняя общеобразовательная школа №12\" города Набережные Челны Республики Татарстан"]
[4,"16684808013","Ибрагимова","Алсу","Флюровна","ж","2011-06-06",null,6,6,48,100,"участник",null,"Беззубова Марина Александровна","Муниципальное бюджетное общеобразовательное учреждение \"Средняя общеобразовательная школа №12\" города Набережные Челны Республики Татарстан"]
[5,"17224114732","Хурматуллина","Ализа","Ильсуровна","ж","2011-02-09",null,6,6,46,100,"участник",null,"Беззубова Марина Александровна","Муниципальное бюджетное общеобразовательное учреждение \"Средняя общеобразовательная школа №12\" города Набережные Челны Республики Татарстан"]
[6,"16570865699","Казанская","Дарья","Максимовна","ж","2011-04-19",null,6,6,43,100,"участник",null,"Беззубова Марина Александровна","Муниципальное бюджетное общеобразовательное учреждение \"Средняя общеобразовательная школа №12\" города Набережные Челны Республики Татарстан"]
[7,"16846341395","Селиверстова","Амалия","Марсовна","ж","2011-09-10",null,6,6,41,100,"участник",null,"Беззубова Марина Александровна","Муниципальное бюджетное общеобразовательное учреждение \"Средняя общеобразовательная школа №12\" города Набережные Челны Республики Татарстан"]
[8,"19427237692","Тамакова","Милана","Михаиловна","ж","2010-01-04",null,6,6,39,100,"участник",null,"Беззубова Марина Александровна","Муниципальное бюджетное общеобразовательное учреждение \"Средняя общеобразовательная школа №12\" города Набережные Челны Республики Татарстан"]
[9,"16320761845","Назипова","Ирина","Арменовна","ж","2011-11-26",null,6,6,38,100,"участник",null,"Беззубова Марина Александровна","Муниципальное бюджетное общеобразовательное учреждение \"Средняя общеобразовательная школа №12\" города Набережные Челны Республики Татарстан"]
[10,"16653983917","Шаймуллин","Данил","Дамирович","м","2011-05-28",null,6,6,73,100,{"$f":"$M$4","v":"призер"},null,"Беззубова Марина Александровна","Муниципальное бюджетное общеобразовательное учреждение \"Средняя общеобразовательная школа №12\" города Набережные Челны Республики Татарстан"]
[11,"16929039204","Шавалиев","Ислам","Ильназович","м","2011-10-28",null,6,6,70,100,{"$f":"$M$4","v":"призер"},null,"Беззубова Марина Александровна","Муниципальное бюджетное общеобразовательное учреждение \"Средняя общеобразовательная школа №12\" города Набережные Челны Республики Татарстан"]
[12,"16785389233","Ягудин","Ильдан","Ильнурович","м","2011-07-25",null,6,6,68,100,"призер",null,"Беззубова Марина Александровна","Муниципальное бюджетное общеобразовательное учреждение \"Средняя общеобразовательная школа №12\" города Набережные Челны Республики Татарстан"]
[13,"16946208602","Домолазов","Илларион","Алексеевич","м","2011-11-09",null,6,6,54,100,"призер",null,"Беззубова Марина Александровна","Муниципальное бюджетное общеобразовательное учреждение \"Средняя общеобразовательная школа №12\" города Набережные Челны Республики Татарстан"]
[14,"17647067299","Сайфуллин","Данияр","Ленарович","м","2011-02-01",null,6,6,51,100,"призер",null,"Беззубова Марина Александровна","Муниципальное бюджетное общеобразовательное учреждение \"Средняя общеобразовательная школа №12\" города Набережные Челны Республики Татарстан"]
[15,"16547871408","Султанов","Антон","Валерьевич","м","2011-04-09",null,6,6,46,100,"участник",null,"Беззубова Марина Александровна","Муниципальное бюджетное общеобразовательное учреждение \"Средняя общеобразовательная школа №12\" города Набережные Челны Республики Татарстан"]
[16,"16606241555","Ярмухаметов","Амирхан","Русланович","м","2011-05-10",null,6,6,43,100,"участник",null,"Беззубова Марина Александровна","Муниципальное бюджетное общеобразовательное учреждение \"Средняя общеобразовательная школа №12\" города Набережные Челны Республики Татарстан"]
[17,"19806954731","Першин","Данил ","Владимирович","м","2010-11-07",null,6,6,41,100,"участник",null,"Беззубова Марина Александровна","Муниципальное бюджетное общеобразовательное учреждение \"Средняя общеобразовательная школа №12\" города Набережные Челны Республики Татарстан"]
[18,"16430837662","Рахманов","Эмиль","Ильназович","м","2011-02-17",null,6,6,38,100,"участник",null,"Беззубова Марина Александровна","Муниципальное бюджетное общеобразовательное учреждение \"Средняя общеобразовательная школа №12\" города Набережные Челны Республики Татарстан"]
[19,"16653984414","Фархутдинов","Руслан","Тагирович","м","03.96.2011",null,6,6,35,100,"участник",null,"Беззубова Марина Александровна","Муниципальное бюджетное общеобразовательное учреждение \"Средняя общеобразовательная школа №12\" города Набережные Челны Республики Татарстан"]
[20,"18048362373","Ульмасова","Камилла","Дмитриевна","ж","2010-05-12",null,7,7,67,100,"участник",null,"Беззубова Марина Александровна","Муниципальное бюджетное общеобразовательное учреждение \"Средняя общеобразовательная школа №12\" города Набережные Челны Республики Татарстан"]
[21,"16940192886","Вдовина","Анастасия","Олеговна","ж","2010-12-21",null,7,7,64,100,"участник",null,"Беззубова Марина Александровна","Муниципальное бюджетное общеобразовательное учреждение \"Средняя общеобразовательная школа №12\" города Набережные Челны Республики Татарстан"]
[22,"15980564913","Минтагирова","Айсылу","Ленаровна","ж","2010-04-28",null,7,7,59,100,"участник",null,"Чернова Надежда Ильинична","Муниципальное бюджетное общеобразовательное учреждение \"Средняя общеобразовательная школа №12\" города Набережные Челны Республики Татарстан"]
[23,"16170469461","Шавалеева","Мадина","Азатовна","ж","2010-06-19",null,7,7,57,100,"участник",null,"Чернова Надежда Ильинична","Муниципальное бюджетное общеобразовательное учреждение \"Средняя общеобразовательная школа №12\" города Набережные Челны Республики Татарстан"]
[24,"17385500482","Шаяхметова","Аделя","Ильмировна","ж","2010-10-28",null,7,7,54,100,"участник",null,"Беззубова Марина Александровна","Муниципальное бюджетное общеобразовательное учреждение \"Средняя общеобразовательная школа №12\" города Набережные Челны Республики Татарстан"]
[25,"17420276752","Галина","Лера","Антоновна","ж","2009-05-11",null,8,8,50,100,"участник",null,"Чернова Надежда Ильинична","Муниципальное бюджетное общеобразовательное учреждение \"Средняя общеобразовательная школа №12\" города Набережные Челны Республики Татарстан"]
[26,"17247611268","Хаертдинова","Камила","Юлдусовна","ж","2009-08-11",null,8,8,48,100,"участник",null,"Чернова Надежда Ильинична","Муниципальное бюджетное общеобразовательное учреждение \"Средняя общеобразовательная школа №12\" города Набережные Челны Республики Татарстан"]
[27,"17173546880","Мухаметова","Алина","Ильнаровна","ж","2009-01-22",null,8,8,44,100,"участник",null,"Чернова Надежда Ильинична","Муниципальное бюджетное общеобразовательное учреждение \"Средняя общеобразовательная школа №12\" города Набережные Челны Республики Татарстан"]
[28,"16985058022","Бухарова","Вероника","Сергеевна","ж","2009-07-18",null,8,8,39,100,"участник",null,"Чернова Надежда Ильинична","Муниципальное бюджетное общеобразовательное учреждение \"Средняя общеобразовательная школа №12\" города Набережные Челны Республики Татарстан"]
[29,"18069163586","Ахияров","Ильдан","Радисович","м","2009-07-06",null,8,8,78,100,{"$f":"$M$4","v":"призер"},null,"Чернова Надежда Ильинична","Муниципальное бюджетное общеобразовательное учреждение \"Средняя общеобразовательная школа №12\" города Набережные Челны Республики Татарстан"]
[30,"18048362070","Галин","Ян","Антонович","м","2010-06-26",null,7,7,72,100,"призер",null,"Беззубова Марина Александровна","Муниципальное бюджетное общеобразовательное учреждение \"Средняя общеобразовательная школа №12\" города Набережные Челны Республики Татарстан"]
[31,"15823037155","Яковлев","Савелий","Александрович","м","11.02.1010",null,7,7,65,100,"призер",null,"Беззубова Марина Александровна","Муниципальное бюджетное общеобразовательное учреждение \"Средняя общеобразовательная школа №12\" города Набережные Челны Республики Татарстан"]
[32,"16206520834","Гимазов","Карим","Ринатович","м","2010-09-09",null,7,7,60,100,"призер",null,"Чернова Надежда Ильинична","Муниципальное бюджетное общеобразовательное учреждение \"Средняя общеобразовательная школа №12\" города Набережные Челны Республики Татарстан"]
[33,"17207843467","Чарыев","Ильназ","Маратович","м","2009-09-28",null,8,8,58,{"$f":"$L$3","v":100},"призер",null,"Чернова Надежда Ильинична","Муниципальное бюджетное общеобразовательное учреждение \"Средняя общеобразовательная школа №12\" города Набережные Челны Республики Татарстан"]
[34,"17260123030","Греков","Богдан","Рустемович","м","2010-05-17",null,7,7,53,100,"призер",null,"Чернова Надежда Ильинична","Муниципальное бюджетное общеобразовательное учреждение \"Средняя общеобразовательная школа №12\" города Набережные Челны Республики Татарстан"]
[35,"17160031888","Пикмуллин","Тимофей","Дмитриевич","м","2010-06-08",null,7,7,51,100,"призер",null,"Беззубова Марина Александровна","Муниципальное бюджетное общеобразовательное учреждение \"Средняя общеобразовательная школа №12\" города Набережные Челны Республики Татарстан"]
[36,"17160029551","Шпаковский","Радель","Александрович","м","2010-06-29",null,7,7,48,100,"участник",null,"Беззубова Марина Александровна","Муниципальное бюджетное общеобразовательное учреждение \"Средняя общеобразовательная школа №12\" города Набережные Челны Республики Татарстан"]
[37,"17479067515","Иванов","Егор","Владимирович","м","2010-04-15",null,7,7,42,100,"участник",null,"Беззубова Марина Александровна","Муниципальное бюджетное общеобразовательное учреждение \"Средняя общеобразовательная школа №12\" города Набережные Челны Республики Татарстан"]
[38,"15960768412","Моисеенко","София","Александровна","ж","2007-01-05",null,10,10,92,100,"победитель",null,"Беззубова Марина Александровна","Муниципальное бюджетное общеобразовательное учреждение \"Средняя общеобразовательная школа №12\" города Набережные Челны Республики Татарстан"]
[39,"17380723679","Теницкая","Ралина","Дмитриевна","ж","2008-10-07",null,9,9,82,100,{"$f":"$M$37","v":"призер"},null,"Чернова Надежда Ильинична","Муниципальное бюджетное общеобразовательное учреждение \"Средняя общеобразовательная школа №12\" города Набережные Челны Республики Татарстан"]
[40,"16224121014","Гареева","Амира","Маратовна","ж","2008-05-21",null,9,9,72,100,"призер",null,"Беззубова Марина Александровна","Муниципальное бюджетное общеобразовательное учреждение \"Средняя общеобразовательная школа №12\" города Набережные Челны Республики Татарстан"]
[41,"15573679608","Авлаярова","Умида","Фархадовна","ж","2008-08-26",null,9,9,70,100,"призер",null,"Чернова Надежда Ильинична","Муниципальное бюджетное общеобразовательное учреждение \"Средняя общеобразовательная школа №12\" города Набережные Челны Республики Татарстан"]
[42,"16010897742","Шамсиева","Яна","Фаиловна","ж","2007-01-07",null,10,10,60,100,"призер",null,"Беззубова Марина Александровна","Муниципальное бюджетное общеобразовательное учреждение \"Средняя общеобразовательная школа №12\" города Набережные Челны Республики Татарстан"]
[43,"18227465986","Шакирова","Алина","Тимуровна","ж","2008-08-04",null,9,9,58,100,"призер",null,"Чернова Надежда Ильинична","Муниципальное бюджетное общеобразовательное учреждение \"Средняя общеобразовательная школа №12\" города Набережные Челны Республики Татарстан"]
[44,"15989471648","Шайгарданова","Азалия","Ильнуровна","ж","2007-04-02",null,10,10,51,100,"участник",null,"Беззубова Марина Александровна","Муниципальное бюджетное общеобразовательное учреждение \"Средняя общеобразовательная школа №12\" города Набережные Челны Республики Татарстан"]
[45,"16155057552","Калимуллина","Азалия","Ильнуровна","ж","2008-09-18",null,9,9,49,100,"участник",null,"Чернова Надежда Ильинична",{"$f":"$P$46","v":"Муниципальное бюджетное общеобразовательное учреждение \"Средняя общеобразовательная школа №12\" города Набережные Челны Республики Татарстан"}]
[46,"19377066411","Зарипова","Лиана","Зуфаровна","ж","2008-02-19",null,9,9,46,100,"участник",null,"Чернова Надежда Ильинична","Муниципальное бюджетное общеобразовательное учреждение \"Средняя общеобразовательная школа №12\" города Набережные Челны Республики Татарстан"]
[47,"16224122016","Хазиев","Камиль","Ленарович","м","2008-07-29",null,9,9,87,100,{"$f":"$M$37","v":"призер"},null,"Беззубова Марина Александровна","Муниципальное бюджетное общеобразовательное учреждение \"Средняя общеобразовательная школа №12\" города Набережные Челны Республики Татарстан"]
[48,"16160796773","Кашапов","Райнур","Васимович","м","2008-10-01",null,9,9,82,100,"призер",null,"Беззубова Марина Александровна","Муниципальное бюджетное общеобразовательное учреждение \"Средняя общеобразовательная школа №12\" города Набережные Челны Республики Татарстан"]
[49,"14646573891","Епифанов","Никита","Анатольевич",{"$f":"F50","v":"м"},"12.03.2007",null,"10","10",79,100,"призер",null,"Беззубова Марина Александровна","Муниципальное бюджетное общеобразовательное учреждение \"Средняя общеобразовательная школа №12\" города Набережные Челны Республики Татарстан"]
[50,"14987684950","Вахитов","Альмир","Искандрович","м","2008-02-21",null,9,9,73,100,"призер",null,"Чернова Надежда Ильинична","Муниципальное бюджетное общеобразовательное учреждение \"Средняя общеобразовательная школа №12\" города Набережные Челны Республики Татарстан"]
[51,"17581480900","Галиев","Алмаз","Рустамович","м","2008-07-19",null,9,9,69,100,"призер",null,"Чернова Надежда Ильинична","Муниципальное бюджетное общеобразовательное учреждение \"Средняя общеобразовательная школа №12\" города Набережные Челны Республики Татарстан"]
[52,"14893192100","Саляхов","Динарт","Ринатович","м","2007-12-20",null,10,10,64,100,"призер",null,"Беззубова Марина Александровна","Муниципальное бюджетное общеобразовательное учреждение \"Средняя общеобразовательная школа №12\" города Набережные Челны Республики Татарстан"]
[53,"16329322056","Габбасов","Булат","Ильдусович","м","2008-05-11",null,9,9,61,100,"призер",null,"Чернова Надежда Ильинична","Муниципальное бюджетное общеобразовательное учреждение \"Средняя общеобразовательная школа №12\" города Набережные Челны Республики Татарстан"]
[54,"16224120971","Ганиев","Риназ","Радикович","м","2008-04-04",null,9,9,59,100,"призер",null,"Беззубова Марина Александровна","Муниципальное бюджетное общеобразовательное учреждение \"Средняя общеобразовательная школа №12\" города Набережные Челны Республики Татарстан"]
[55,"14942179080","Шигабутдинов","Азамат","Марсович","м","2008-02-12",null,9,9,52,100,"участник",null,"Чернова Надежда Ильинична","Муниципальное бюджетное общеобразовательное учреждение \"Средняя общеобразовательная школа №12\" города Набережные Челны Республики Татарстан"]

{"sheet":"data","index":1,"n_rows":25,"n_cols":3,"rows_kept":25,"hidden":true}
[]
["Техника, технология и техническое творчество .  Ручная обработка древесины"]
["Техника, технология и техническое творчество .  Ручная обработка металла"]
["Техника, технология и техническое творчество .  Механическая обработка древесины"]
["Техника, технология и техническое творчество .  Механическая обработка металла"]
["Техника, технология и техническое творчество .  Электротехника"]
["Техника, технология и техническое творчество .  Робототехника"]
["Техника, технология и техническое творчество .  3d - моделирование и печать"]
["Техника, технология и техническое творчество .  Обработка материалов на лазерно-гравировальной машине"]
["Техника, технология и техническое творчество .  Промышленный дизайн"]
["Культура дома, дизайн и технологии .  Обработка швейного изделия или узла + моделирование швейных изделий"]
["Культура дома, дизайн и технологии .  Обработка швейного изделия или узла + моделирование швейных изделий с использованием графических редакторов"]
["Культура дома, дизайн и технологии .  Обработка швейного изделия или узла на швейно-вышивальном оборудовании + моделирование швейных изделий"]
["Культура дома, дизайн и технологии .  Обработка швейного изделия или узла на швейно-вышивальном оборудовании + моделирование швейных изделий с использованием графических редакторов"]
["Культура дома, дизайн и технологии .  Робототехника"]
["Культура дома, дизайн и технологии .  3d - моделирование и печать"]
["Культура дома, дизайн и технологии .  Обработка материалов на лазерно-гравировальной машине"]
["Культура дома, дизайн и технологии .  Промышленный дизайн"]
["Роботехника .  "]
["Информационная безопасность ."]
[]
[]
["участник"]
["призер",null,"да"]
["победитель"]